bitfinex-derivatives/quotes_BTCF0:USTF0_20251208
["timestamp","ask_amount","ask_price","bid_price","bid_amount"]
[1765157236132,0.006,91028.0,91027.0,0.05750473]
[1765157238634,0.00399998,91028.0,91027.0,0.43750473]
[1765157240436,0.00399998,91028.0,91027.0,0.17750473]
[1765157240645,0.00399998,91028.0,91027.0,0.47750473]
[1765157240949,0.02803407,91046.0,91045.0,0.05734]
[1765157241240,0.05627407,91046.0,91045.0,0.05734]
[1765157241427,0.01114667,91046.0,91041.0,0.0109831]
[1765157241628,0.05611,91037.0,91036.0,0.05734]
[1765157241831,0.05611,91037.0,91036.0,0.0683237]
[1765157242842,0.05711,91037.0,91036.0,0.0683237]
[1765157244743,0.05711,91037.0,91036.0,0.05734]
[1765157244944,0.05711,91037.0,91036.0,0.02966]
[1765157245947,0.05611,91036.0,91035.0,0.0109838]
[1765157246149,0.05611,91036.0,91035.0,0.0406438]
[1765157246744,0.05611,91036.0,91035.0,0.0109838]
[1765157247145,0.05611,91036.0,91035.0,0.0683238]
[1765157250448,0.05611,91042.0,91041.0,0.0406431]
[1765157250748,0.05611,91042.0,91041.0,0.0683231]
[1765157251053,0.07336,91042.0,91041.0,0.0406431]
[1765157251344,0.07336,91042.0,91041.0,0.0109831]
[1765157251653,0.07336,91042.0,91032.0,0.06785529]
[1765157251654,0.05611,91033.0,91032.0,0.12519529]
[1765157251849,0.05611,91033.0,91032.0,0.05734]
[1765157252646,0.05611,91033.0,91032.0,0.0683242]
[1765157255757,0.05611,91033.0,91032.0,0.09747094]
[1765157256157,0.05611,91033.0,91032.0,0.0683242]
[1765157256457,0.05611,91033.0,91032.0,0.09747094]
[1765157258253,0.05627407,91046.0,91045.0,0.05734]
[1765157259172,0.00016407,91046.0,91045.0,0.05734]
[1765157259749,0.00016407,91046.0,91045.0,0.05834]
[1765157260659,0.02803407,91046.0,91045.0,0.05834]
[1765157261053,0.00016407,91046.0,91045.0,0.05834]
[1765157263860,0.02918407,91046.0,91045.0,0.05834]
[1765157264264,0.00016407,91046.0,91045.0,0.05834]
[1765157264955,0.00016407,91046.0,91045.0,0.43834]
[1765157265355,0.00016407,91046.0,91045.0,0.18834]
[1765157265557,0.02918407,91046.0,91045.0,0.18834]
[1765157265750,0.05706407,91046.0,91045.0,0.05834]
[1765157265956,0.02918407,91046.0,91045.0,0.05834]
[1765157266361,0.05706407,91046.0,91045.0,0.28834]
[1765157266668,0.02918407,91046.0,91045.0,0.05834]
[1765157266859,0.05706407,91046.0,91045.0,0.05834]
[1765157267058,0.05706407,91046.0,91045.0,0.03066]
[1765157267263,0.05706407,91046.0,91045.0,0.001]
[1765157268355,0.0569,91032.0,91031.0,0.05533]
[1765157269150,0.07347,91028.0,91027.0,0.00016473]
[1765157272465,0.07347,91028.0,91027.0,0.02796473]
[1765157273167,0.07347,91028.0,91027.0,0.00016473]
[1765157281659,0.0569,91028.0,91027.0,0.05667473]
[1765157282863,0.01657,91042.0,91041.0,0.05651]
[1765157283063,0.14594834,91045.0,91044.0,0.05651]
[1765157283268,0.08685834,91045.0,91044.0,0.44651]
[1765157283771,0.00016407,91046.0,91045.0,0.0674927]
[1765157284070,0.02955407,91046.0,91045.0,0.0674927]
[1765157284268,0.00016407,91046.0,91045.0,0.0674927]
[1765157285664,0.00016407,91046.0,91045.0,0.0684927]
[1765157286067,0.00016407,91046.0,91045.0,0.4584927]
[1765157286772,0.00016407,91046.0,91045.0,0.1484927]
[1765157287071,0.00016407,91046.0,91045.0,0.4284927]
[1765157289476,0.0765,91070.0,91069.0,0.05651]
[1765157289665,0.05909,91070.0,91069.0,0.05651]
[1765157290872,0.05909,91070.0,91069.0,0.05751]
[1765157291466,0.02939,91070.0,91069.0,0.05751]
[1765157291665,0.05909,91070.0,91069.0,0.05751]
[1765157291865,0.01741,91077.0,91076.0,0.05633]
[1765157291866,0.05748,91077.0,91076.0,0.05633]
[1765157292075,0.05702,91084.0,91082.0,0.0109781]
[1765157292370,0.05702,91084.0,91083.0,0.05555]
[1765157293171,0.00027447,91086.0,91085.0,0.05555]
[1765157293372,0.01689,91120.0,91119.0,0.05555]
[1765157293373,0.0679936,91120.0,91119.0,0.05555]
[1765157293673,0.0679936,91120.0,91104.0,0.01695]
[1765157293674,0.05702,91111.0,91110.0,0.16954447]
[1765157293867,0.05702,91111.0,91110.0,0.05571462]
[1765157294066,0.05702,91120.0,91119.0,0.05555]
[1765157294378,0.00027435,91126.0,91125.0,0.06863]
[1765157295065,0.06826725,91126.0,91125.0,0.05555]
[1765157295267,0.05729435,91126.0,91125.0,0.05555]
[1765157295467,0.00027435,91126.0,91116.0,0.12959985]
[1765157295669,0.00027435,91126.0,91124.0,0.02827]
[1765157295670,0.067993,91125.0,91124.0,0.02827]
[1765157295863,0.00027435,91126.0,91124.0,0.02827]
[1765157295864,0.00027435,91126.0,91125.0,0.05555]
[1765157296064,0.00027435,91126.0,91125.0,0.40555]
[1765157296672,0.067991,91142.0,91141.0,0.05555]
[1765157298283,0.067991,91142.0,91141.0,0.02827]
[1765157298581,0.010969,91159.0,91158.0,0.05555]
[1765157298771,0.0109694,91155.0,91142.0,0.5226509]
[1765157298973,0.0278589,91160.0,91142.0,0.86168]
[1765157299278,0.0109694,91155.0,91143.0,0.0109708]
[1765157299476,0.0109694,91155.0,91154.0,0.05555]
[1765157299477,0.0679895,91155.0,91154.0,0.05555]
[1765157299678,0.0109651,91191.0,91154.0,0.05555]
[1765157299679,0.0109651,91191.0,91165.0,0.05555]
[1765157299980,0.13071985,91190.0,91165.0,0.05555]
[1765157300181,1e-08,91166.0,91165.0,0.48555]
[1765157300379,0.05929434,91223.0,91222.0,0.05555]
[1765157300380,0.0679812,91223.0,91222.0,0.05555]
[1765157300571,0.0679812,91223.0,91200.0,0.01695]
[1765157300572,0.01689,91210.0,91200.0,0.16937985]
[1765157300878,0.010962,91217.0,91200.0,0.05555]
[1765157301081,0.01689,91220.0,91200.0,0.05555]
[1765157301375,0.01689,91220.0,91198.0,0.0109642]
[1765157301376,0.05702,91197.0,91196.0,0.00016452]
[1765157302479,0.01689,91200.0,91165.0,9.693e-05]
[1765157302674,0.11382985,91180.0,91165.0,9.693e-05]
[1765157303068,0.01689,91200.0,91166.0,0.010968]
[1765157303069,0.11382985,91190.0,91166.0,0.010968]
[1765157303270,0.11382985,91190.0,91166.0,0.360968]
[1765157303488,0.00016382,91187.0,91169.0,0.01711452]
[1765157303682,0.00016382,91187.0,91170.0,0.0109675]
[1765157303976,0.01689,91200.0,91177.0,0.12479655]
[1765157304373,0.14168395,91200.0,91177.0,0.0109667]
[1765157304682,0.14168395,91200.0,91170.0,0.12479745]
[1765157304974,0.0109648,91194.0,91170.0,0.0409676]
[1765157305283,0.11382985,91180.0,91169.0,0.00016452]
[1765157305580,0.05702,91170.0,91169.0,0.00016452]
[1765157305780,0.05702,91170.0,91169.0,0.02843452]
[1765157306078,0.05702,91170.0,91169.0,0.00016452]
[1765157306878,0.01097,91151.0,91130.0,0.00802]
[1765157307071,0.01689,91156.0,91130.0,0.00802]
[1765157307072,0.0109705,91146.0,91130.0,0.00802]
[1765157307477,0.11382985,91150.0,91130.0,0.00802]
[1765157307478,0.11382985,91150.0,91131.0,0.0109722]
[1765157307683,0.0109702,91149.0,91131.0,0.0109722]
[1765157307872,0.12479985,91150.0,91130.0,0.0189923]
[1765157308076,0.00027787,91149.0,91131.0,0.00016452]
[1765157308278,0.05702,91139.0,91138.0,0.0109714]
[1765157308472,0.05702,91139.0,91131.0,0.00016452]
[1765157308473,0.05702,91139.0,91132.0,0.0109722]
[1765157308779,0.05702,91132.0,91131.0,0.00016452]
[1765157309081,0.05702,91132.0,91131.0,0.00116452]
[1765157309485,8.087e-05,91138.0,91131.0,0.05671452]
[1765157309683,8.087e-05,91138.0,91137.0,0.05555]
[1765157311394,8.087e-05,91138.0,91137.0,0.0685216]
[1765157312287,8.087e-05,91138.0,91137.0,0.40555]
[1765157312793,8.087e-05,91138.0,91137.0,0.47555]
[1765157313086,0.01689,91195.0,91181.0,0.05555]
[1765157313287,0.01689,91195.0,91177.0,0.0109667]
[1765157313288,0.0679859,91184.0,91170.0,0.11382985]
[1765157313489,0.02893,91171.0,91164.0,0.0109682]
[1765157313683,0.02893,91165.0,91164.0,0.0392382]
[1765157313882,0.02897116,91165.0,91164.0,0.0665182]
[1765157314081,4.116e-05,91165.0,91164.0,0.0665182]
[1765157314283,0.0109633,91206.0,91188.0,0.0109654]
[1765157314586,0.0109633,91206.0,91190.0,0.05555]
[1765157314785,0.01689,91208.0,91190.0,0.05555]
[1765157314991,0.02893,91191.0,91190.0,0.05555]
[1765157315390,0.05702,91204.0,91203.0,0.0109636]
[1765157315689,0.01689,91221.0,91190.0,0.11382985]
[1765157315883,0.01689,91221.0,91200.0,0.11382985]
[1765157316195,0.05702,91216.0,91215.0,0.0392322]
[1765157316497,0.01689,91221.0,91206.0,0.00016452]
[1765157316498,0.05702,91207.0,91206.0,0.00016452]
[1765157316883,0.01689,91221.0,91207.0,0.0109631]
[1765157317384,0.0109616,91220.0,91207.0,0.0109631]
[1765157317584,0.05702,91207.0,91206.0,0.00016452]
[1765157318181,0.01689,91221.0,91212.0,0.0109625]
[1765157318393,0.05702,91213.0,91212.0,0.0392325]
[1765157318882,0.01416646,91230.0,91217.0,0.0109619]
[1765157319087,0.02893,91212.0,91211.0,0.0109626]
[1765157319283,0.05702,91207.0,91206.0,0.00016452]
[1765157320590,0.01689,91221.0,91206.0,0.00016452]
[1765157320786,0.01689,91221.0,91215.0,0.0109621]
[1765157320993,0.05702,91207.0,91206.0,0.00016452]
[1765157321291,0.05702,91207.0,91182.0,0.01695]
[1765157321487,0.11382985,91200.0,91186.0,0.0109656]
[1765157321799,0.05702,91187.0,91180.0,0.0109664]
[1765157321983,0.0278531,91208.0,91195.0,0.0279145]
[1765157322294,0.05568,91201.0,91197.0,0.0109643]
[1765157322990,0.05568,91201.0,91200.0,0.05889]
[1765157323197,0.0273,91201.0,91200.0,0.05889]
[1765157323391,0.00016452,91211.0,91192.0,0.00016452]
[1765157323589,0.0273,91210.0,91209.0,0.0698528]
[1765157323786,0.00016452,91211.0,91210.0,0.05889]
[1765157324886,0.05584452,91211.0,91210.0,0.05889]
[1765157325081,0.00016452,91211.0,91209.0,0.0109628]
[1765157325395,0.02746452,91211.0,91210.0,0.05889]
[1765157325695,0.05568,91210.0,91209.0,0.0109628]
[1765157325899,0.00016452,91211.0,91210.0,0.05889]
[1765157326395,0.00016452,91211.0,91210.0,0.48889]
[1765157326701,0.00016452,91211.0,91210.0,0.05889]
[1765157326894,0.00016452,91211.0,91210.0,0.28889]
[1765157327286,0.00320596,91230.0,91210.0,0.23]
[1765157327486,0.00320596,91230.0,91229.0,0.05889]
[1765157327683,0.05888596,91230.0,91229.0,0.05889]
[1765157327886,0.05888596,91230.0,91223.0,0.0109612]
[1765157328193,0.05888596,91230.0,91208.0,0.01695]
[1765157328194,0.03050596,91230.0,91229.0,0.05889]
[1765157328389,0.0273,91222.0,91221.0,0.0109614]
[1765157328692,0.00320596,91230.0,91221.0,0.05889]
[1765157328891,0.07232,91221.0,91220.0,0.00016442]
[1765157329289,0.05568,91221.0,91220.0,0.02989442]
[1765157329599,0.07232,91221.0,91220.0,0.00016442]
[1765157329991,0.00320596,91230.0,91221.0,0.0109615]
[1765157330400,0.05888596,91230.0,91221.0,0.0109615]
[1765157330598,0.0273,91222.0,91221.0,0.0698515]
[1765157330793,0.00320596,91230.0,91221.0,0.0698515]
[1765157331588,0.00320596,91230.0,91220.0,0.00016442]
[1765157331589,0.03050596,91230.0,91229.0,0.05889]
[1765157331796,0.00320596,91230.0,91229.0,0.05889]
[1765157332190,0.0685569,91260.0,91245.0,0.02973]
[1765157332394,0.0275969,91260.0,91245.0,0.05889]
[1765157332594,0.05568,91242.0,91241.0,0.069849]
[1765157332899,0.05568,91242.0,91241.0,0.05889]
[1765157333096,0.0273,91230.0,91229.0,0.0698504]
[1765157333399,0.0273,91241.0,91240.0,0.0109591]
[1765157333604,0.02757399,91246.0,91245.0,0.05889]
[1765157333803,0.05595399,91246.0,91245.0,0.05889]
[1765157334095,0.00027399,91246.0,91245.0,0.05889]
[1765157334294,0.00027399,91246.0,91245.0,0.0698486]
[1765157334507,0.00027387,91286.0,91285.0,0.05889]
[1765157334892,0.05568,91277.0,91270.0,0.11382985]
[1765157335103,0.05568,91277.0,91276.0,0.02989432]
[1765157335290,0.05568,91277.0,91276.0,0.00016432]
[1765157336002,0.00027387,91286.0,91285.0,0.05889]
[1765157336698,0.00027387,91286.0,91276.0,0.12494897]
[1765157336699,0.05595387,91286.0,91276.0,0.01111912]
[1765157336892,0.07259387,91286.0,91276.0,0.08111912]
[1765157337194,0.05595387,91286.0,91276.0,0.01111912]
[1765157337389,0.05595387,91286.0,91285.0,0.02973]
[1765157337597,0.05595387,91286.0,91285.0,0.05889]
[1765157337795,0.02757387,91286.0,91285.0,0.05889]
[1765157337989,0.05641387,91286.0,91285.0,0.02973]
[1765157338195,0.07433387,91286.0,91276.0,0.01111912]
[1765157338496,0.02832,91277.0,91276.0,0.06884912]
[1765157338700,0.01819387,91286.0,91276.0,0.05789432]
[1765157339195,0.01819387,91286.0,91277.0,0.0109547]
[1765157339396,0.00027387,91286.0,91277.0,0.0109547]
[1765157339701,0.05743387,91286.0,91285.0,0.02971]
[1765157340004,0.00027387,91286.0,91285.0,0.05773]
[1765157340398,0.05743387,91286.0,91277.0,0.0109547]
[1765157340699,0.05716,91277.0,91276.0,0.00016432]
[1765157340900,0.00027387,91286.0,91285.0,0.05773]
[1765157342001,0.00027387,91286.0,91285.0,0.35773]
[1765157342602,0.00027375,91326.0,91308.0,0.010951]
[1765157342802,0.05716,91317.0,91310.0,0.06754498]
[1765157343102,0.05716,91309.0,91308.0,0.00016432]
[1765157343299,0.05716,91309.0,91308.0,0.05789432]
[1765157343496,0.01632,91325.0,91308.0,0.00016432]
[1765157343695,0.05716,91316.0,91310.0,0.06754498]
[1765157343912,0.01632,91325.0,91308.0,0.01111522]
[1765157343913,0.05716,91309.0,91308.0,0.00016432]
[1765157344203,0.027269,91325.0,91308.0,0.05789432]
[1765157344413,0.027269,91325.0,91310.0,0.06754498]
[1765157344595,0.02832,91311.0,91310.0,0.06754498]
[1765157344796,0.05716,91309.0,91308.0,0.02987432]
[1765157345307,0.05716,91309.0,91308.0,0.00016432]
[1765157345697,0.027269,91325.0,91309.0,0.0109509]
[1765157345907,0.05716,91309.0,91308.0,0.00016432]
[1765157346708,0.05716,91309.0,91278.0,0.0109546]
[1765157346709,0.05716,91279.0,91278.0,0.0406646]
[1765157347003,0.05716,91279.0,91278.0,0.0686846]
[1765157347201,0.0109519,91301.0,91284.0,0.0863538]
[1765157347408,0.05716,91297.0,91296.0,0.0109523]
[1765157347596,0.00016365,91306.0,91296.0,0.0863523]
[1765157347906,0.00016365,91306.0,91296.0,0.15389728]
[1765157348110,0.00016365,91306.0,91296.0,0.0863523]
[1765157348704,0.00016365,91306.0,91301.0,0.0109518]
[1765157349704,0.05716,91302.0,91301.0,0.0109518]
[1765157350807,0.05716,91288.0,91287.0,0.00016432]
[1765157351698,0.05716,91288.0,91287.0,0.01111782]
[1765157352411,0.01653,91296.0,91290.0,0.0109531]
[1765157352612,0.05491,91291.0,91290.0,0.0109531]
[1765157352813,0.05491,91291.0,91290.0,0.0682431]
[1765157353202,0.00016365,91306.0,91287.0,0.00016432]
[1765157353407,0.00016365,91306.0,91296.0,0.06754498]
[1765157353604,0.00016365,91306.0,91296.0,0.08539498]
[1765157353811,0.05491,91297.0,91296.0,0.06754498]
[1765157354108,0.05491,91291.0,91290.0,0.07849818]
[1765157354301,0.05491,91291.0,91290.0,0.13578818]
[1765157354501,0.05491,91291.0,91290.0,0.0682432]
[1765157354710,0.01111495,91306.0,91294.0,0.0109527]
[1765157354906,0.02728,91291.0,91290.0,0.06754498]
[1765157355107,0.05491,91288.0,91287.0,0.00016432]
[1765157355915,0.0658634,91288.0,91287.0,0.00016432]
[1765157356721,0.05491,91263.0,91262.0,0.0109565]
[1765157356909,0.05491,91254.0,91253.0,0.06754498]
[1765157357104,0.05491,91245.0,91244.0,0.06754498]
[1765157357408,0.02763,91231.0,91230.0,0.09631722]
[1765157357610,0.05491,91227.0,91224.0,0.010961]
[1765157358203,0.05491,91227.0,91221.0,0.00016442]
[1765157358405,0.00016442,91240.0,91232.0,0.0109601]
[1765157358607,0.02763,91233.0,91232.0,0.0109601]
[1765157358805,0.05491,91233.0,91227.0,0.0109607]
[1765157359001,0.05491,91227.0,91223.0,0.06754498]
[1765157359201,0.05491,91227.0,91221.0,0.01801442]
[1765157359202,0.00016442,91240.0,91239.0,0.0295]
[1765157359607,0.02779442,91240.0,91239.0,0.0295]
[1765157359813,0.02763,91238.0,91237.0,0.0109594]
[1765157360216,0.05491,91238.0,91237.0,0.0109594]
[1765157360710,0.00016442,91240.0,91237.0,0.0682494]
[1765157360912,0.05491,91238.0,91237.0,0.0109594]
[1765157361119,0.05491,91238.0,91221.0,0.01801442]
[1765157361120,0.05491,91227.0,91221.0,0.00016442]
[1765157361811,0.05491,91227.0,91226.0,0.0296046]
[1765157362016,0.05491,91227.0,91226.0,0.0001046]
[1765157368117,0.02763,91227.0,91226.0,0.0296046]
[1765157368322,0.05507442,91240.0,91239.0,0.0109593]
[1765157368517,0.05507442,91240.0,91239.0,0.0404593]
[1765157368917,0.05491,91235.0,91234.0,0.0404598]
[1765157369313,0.05491,91235.0,91234.0,0.0109598]
[1765157369717,0.05491,91235.0,91234.0,0.0682498]
[1765157370417,0.05491,91235.0,91234.0,0.0404598]
[1765157371318,0.05491,91235.0,91234.0,0.0682498]
[1765157373120,0.05491,91235.0,91234.0,0.0404598]
[1765157373328,0.05491,91235.0,91234.0,0.0682498]
[1765157374213,0.05491,91235.0,91234.0,0.0109598]
[1765157375823,0.05491,91235.0,91226.0,0.0001046]
[1765157375824,0.01653,91234.0,91226.0,0.0001046]
[1765157376025,0.05491,91227.0,91226.0,0.0001046]
[1765157377827,0.0109629,91209.0,91198.0,0.0109641]
[1765157378122,0.05491,91207.0,91194.0,0.0109646]
[1765157378328,0.05491,91207.0,91200.0,0.0109639]
[1765157378628,0.05491,91207.0,91206.0,0.02977411]
[1765157378828,0.0550146,91207.0,91206.0,0.02977411]
[1765157379130,0.0550146,91207.0,91206.0,0.00027411]
[1765157380034,0.0001046,91207.0,91206.0,0.05756411]
[1765157381530,0.00016442,91216.0,91215.0,0.05729]
[1765157381921,0.0109598,91236.0,91235.0,0.0109598]
[1765157381922,0.05664,91236.0,91235.0,0.0109598]
[1765157383927,0.05664,91227.0,91226.0,0.00016442]
[1765157386530,0.45664,91227.0,91226.0,0.00016442]
[1765157386741,0.05664,91207.0,91192.0,0.02877224]
[1765157386934,0.05664,91207.0,91202.0,0.0109637]
[1765157387829,0.05664,91207.0,91197.0,0.00016442]
[1765157387830,0.05664,91207.0,91198.0,0.0109641]
[1765157388530,0.05664,91207.0,91204.0,0.0109635]
[1765157389127,0.05664,91207.0,91206.0,0.05603411]
[1765157389329,0.05551,91214.0,91213.0,0.0109624]
[1765157390126,0.05551,91210.0,91209.0,0.0109629]
[1765157390322,0.05551,91207.0,91206.0,0.00027411]
[1765157391030,0.05551,91207.0,91206.0,0.02820411]
[1765157392123,0.05551,91207.0,91206.0,0.00027411]
[1765157394928,0.05551,91198.0,91197.0,0.00016442]
[1765157395738,0.05551,91205.0,91204.0,0.05576]
[1765157395937,0.05551,91205.0,91204.0,0.0667235]
[1765157396335,0.05551,91205.0,91197.0,0.00016442]
[1765157396336,0.05551,91215.0,91214.0,0.0109622]
[1765157397036,0.05551,91211.0,91210.0,0.0109627]
[1765157398142,0.05551,91207.0,91206.0,0.0109632]
[1765157398545,0.05551,91203.0,91202.0,0.0109637]
[1765157399538,0.01639,91200.0,91198.0,0.0109641]
[1765157399738,0.05551,91199.0,91198.0,0.0388941]
[1765157399940,0.05551,91199.0,91198.0,0.0667241]
[1765157400640,0.02791,91213.0,91212.0,0.0831025]
[1765157400843,0.00016442,91216.0,91215.0,0.05576]
[1765157401041,0.0109588,91244.0,91238.0,0.02793]
[1765157401239,0.08393498,91260.0,91238.0,0.02793]
[1765157401240,0.05929434,91258.0,91238.0,0.0388894]
[1765157401442,0.01639,91260.0,91224.0,0.01638]
[1765157401443,0.0566,91236.0,91235.0,0.0109597]
[1765157401644,0.08393498,91260.0,91226.0,0.06754498]
[1765157401843,0.0566,91237.0,91224.0,0.01638]
[1765157402041,0.00016442,91240.0,91234.0,0.01797]
[1765157402245,0.02846,91251.0,91234.0,0.01797]
[1765157402556,0.02846,91251.0,91241.0,0.06754498]
[1765157402732,0.02846,91251.0,91240.0,0.11328869]
[1765157402935,0.0566,91259.0,91258.0,0.010957]
[1765157403646,0.0566,91263.0,91262.0,0.0666465]
[1765157403849,0.00016388,91268.0,91262.0,0.0666465]
[1765157404052,0.02846,91263.0,91262.0,0.0666465]
[1765157404231,0.00016388,91268.0,91262.0,0.0666465]
[1765157404642,0.00016388,91268.0,91267.0,0.0666459]
[1765157405143,0.0566,91285.0,91279.0,0.0109545]
[1765157405342,0.0566,91285.0,91284.0,0.02745]
[1765157405643,0.0109521,91299.0,91284.0,0.05569]
[1765157405849,0.0109521,91299.0,91285.0,0.0109537]
[1765157406236,0.0109521,91299.0,91298.0,0.05569]
[1765157406439,0.01639,91338.0,91299.0,0.0109521]
[1765157406440,0.01095,91317.0,91299.0,0.0109521]
[1765157406640,0.01095,91317.0,91294.0,0.01797]
[1765157406641,0.01095,91317.0,91307.0,0.11328869]
[1765157406850,0.01095,91317.0,91301.0,0.0109518]
[1765157407345,0.01095,91317.0,91299.0,0.00016432]
[1765157407346,0.0566,91300.0,91299.0,0.00016432]
[1765157409264,0.01639,91294.0,91276.0,0.0109548]
[1765157409655,0.0109519,91301.0,91281.0,0.0666442]
[1765157409960,0.02846,91281.0,91273.0,0.0289251]
[1765157410464,0.02846,91274.0,91268.0,0.00016432]
[1765157410761,0.0566,91269.0,91268.0,0.00016432]
[1765157411159,0.0675557,91269.0,91268.0,0.00016432]
[1765157411756,0.02846,91239.0,91232.0,0.01096]
[1765157411960,0.0109579,91252.0,91238.0,0.05584]
[1765157412161,0.02727,91240.0,91239.0,0.0109592]
[1765157412353,0.05541,91240.0,91239.0,0.0392392]
[1765157412557,0.05541,91235.0,91234.0,0.0109599]
[1765157413073,0.02727,91230.0,91229.0,0.0109605]
[1765157413266,0.02727,91230.0,91229.0,0.0392405]
[1765157413669,0.02727,91230.0,91225.0,0.00016441]
[1765157413670,0.00016441,91244.0,91235.0,0.0109597]
[1765157414967,0.00016441,91244.0,91239.0,0.0109592]
[1765157415267,0.00016441,91244.0,91243.0,0.05584]
[1765157415469,0.0109554,91272.0,91243.0,0.4]
[1765157415773,0.05929434,91296.0,91243.0,0.4]
[1765157415774,0.0109534,91289.0,91276.0,0.0109548]
[1765157416072,0.05541,91272.0,91266.0,0.010956]
[1765157416274,0.11404924,91309.0,91266.0,0.010956]
[1765157416275,0.1324,91299.0,91276.0,0.0109548]
[1765157416462,0.00016389,91297.0,91278.0,0.00016432]
[1765157416759,0.05541,91279.0,91278.0,0.00016432]
[1765157417870,0.0109531,91291.0,91278.0,0.03939882]
[1765157418261,0.0109526,91296.0,91278.0,0.03939882]
[1765157418459,0.00016389,91297.0,91278.0,0.03939882]
[1765157418858,0.0109536,91287.0,91278.0,0.03939882]
[1765157419060,0.00016389,91297.0,91286.0,0.02828]
[1765157419257,0.00016389,91297.0,91280.0,0.01737]
[1765157419258,0.02743389,91297.0,91296.0,0.05584]
[1765157419466,0.05557389,91297.0,91291.0,0.010953]
[1765157419768,0.00016389,91297.0,91296.0,0.05584]
[1765157419968,0.05541,91296.0,91295.0,0.0109525]
[1765157420170,0.05541,91288.0,91287.0,0.0109535]
[1765157420558,0.05541,91281.0,91280.0,0.0392343]
[1765157421164,0.0109525,91296.0,91280.0,0.01737]
[1765157421366,0.00016389,91297.0,91292.0,0.0109529]
[1765157422063,0.00016389,91297.0,91296.0,0.05584]
[1765157422263,0.05557389,91297.0,91296.0,0.02828]
[1765157422472,0.05541,91293.0,91292.0,0.0109529]
[1765157422665,0.00016389,91297.0,91296.0,0.05584]
[1765157422970,0.05557389,91297.0,91292.0,0.0109529]
[1765157423166,0.02727,91293.0,91292.0,0.0109529]
[1765157423367,0.02727,91293.0,91292.0,0.0392329]
[1765157423568,0.02727,91293.0,91292.0,0.0667929]
[1765157423762,0.00016389,91297.0,91296.0,0.05584]
[1765157424374,0.00016389,91297.0,91296.0,0.0667925]
[1765157424763,0.0109492,91324.0,91312.0,0.0109504]
[1765157424963,0.0109485,91330.0,91325.0,0.05584]
[1765157425166,0.02754375,91326.0,91325.0,0.05584]
[1765157425369,0.05541,91317.0,91310.0,0.0109507]
[1765157425676,0.05541,91317.0,91316.0,0.02828]
[1765157425874,0.05541,91317.0,91308.0,0.01737]
[1765157426273,0.05541,91308.0,91307.0,0.02844432]
[1765157426580,0.00027375,91326.0,91325.0,0.05584]
[1765157427466,0.05568375,91326.0,91310.0,0.0109507]
[1765157427671,0.05568375,91326.0,91309.0,0.0109509]
[1765157427875,0.0109497,91319.0,91308.0,0.01737]
[1765157428382,0.05541,91310.0,91303.0,0.0109515]
[1765157428574,0.05541,91308.0,91300.0,0.11328869]
[1765157428874,0.05541,91308.0,91302.0,0.0109517]
[1765157429475,0.05541,91308.0,91269.0,0.02877224]
[1765157429476,0.06213,91308.0,91269.0,0.02877224]
[1765157429667,0.05541,91289.0,91288.0,0.0109533]
[1765157430182,0.02727,91289.0,91288.0,0.0667933]
[1765157430583,0.00016432,91298.0,91294.0,0.0109527]
[1765157430882,0.00016432,91298.0,91297.0,0.05584]
[1765157434380,0.00016432,91298.0,91297.0,0.31584]
[1765157434580,0.010949,91325.0,91300.0,0.11328869]
[1765157435571,0.00027375,91326.0,91325.0,0.05584]
[1765157440883,0.02727,91322.0,91321.0,0.0109494]
[1765157441187,0.02727,91317.0,91316.0,0.01095]
[1765157441385,0.02727,91317.0,91316.0,0.03923]
[1765157441684,0.05541,91322.0,91316.0,0.01095]
[1765157441889,0.05541,91322.0,91308.0,0.01737]
[1765157441890,0.0109501,91316.0,91308.0,0.01737]
[1765157442185,0.0109501,91316.0,91306.0,0.0109512]
[1765157442186,0.05495,91304.0,91301.0,0.0109518]
[1765157442490,0.0109504,91313.0,91304.0,0.0109515]
[1765157442687,0.0109499,91318.0,91308.0,0.010951]
[1765157442981,0.02728,91304.0,91303.0,0.01111592]
[1765157443188,0.02728,91304.0,91303.0,0.00016432]
[1765157443189,0.05495,91304.0,91303.0,0.00016432]
[1765157443377,0.0659015,91304.0,91303.0,0.00016432]
[1765157443786,0.00672,91308.0,91283.0,0.0688039]
[1765157443787,0.02728,91284.0,91283.0,0.0688039]
[1765157444082,0.0659032,91290.0,91284.0,0.0109538]
[1765157444287,0.05495,91290.0,91279.0,0.0109544]
[1765157444487,0.0109527,91295.0,91285.0,0.0109538]
[1765157444690,0.00016432,91299.0,91281.0,0.00016432]
[1765157444893,0.11328869,91291.0,91281.0,0.00016432]
[1765157445186,0.05495,91282.0,91281.0,0.00016432]
[1765157446077,0.05495,91267.0,91260.0,0.0109567]
[1765157446681,0.12424309,91280.0,91266.0,0.05785]
[1765157446875,0.0109538,91285.0,91271.0,0.0109554]
[1765157447581,0.00016432,91287.0,91269.0,0.00016432]
[1765157447582,0.0109538,91286.0,91269.0,0.00016432]
[1765157447789,0.0109538,91286.0,91274.0,0.010955]
[1765157448087,0.00016432,91287.0,91274.0,0.010955]
[1765157448386,0.0109542,91282.0,91270.0,0.0109556]
[1765157448584,0.0109541,91283.0,91269.0,0.00016432]
[1765157448789,0.0109537,91286.0,91274.0,0.010955]
[1765157450082,0.02728,91275.0,91274.0,0.068805]
[1765157450289,0.0109537,91286.0,91274.0,0.068805]
[1765157451274,0.00016432,91287.0,91278.0,0.02884]
[1765157451482,0.00016432,91287.0,91286.0,0.07438]
[1765157451882,0.0109514,91306.0,91305.0,0.05785]
[1765157452083,0.0109508,91311.0,91310.0,0.05785]
[1765157452277,0.05495,91311.0,91299.0,0.01653]
[1765157452477,0.0109506,91312.0,91290.0,0.11328869]
[1765157452680,0.05929434,91323.0,91299.0,0.01653]
[1765157452886,0.00016432,91320.0,91302.0,0.00016432]
[1765157453589,0.00016432,91320.0,91319.0,0.05785]
[1765157454189,0.05511432,91320.0,91313.0,0.0109504]
[1765157454380,0.02728,91309.0,91308.0,0.010951]
[1765157454584,0.02728,91309.0,91308.0,0.068801]
[1765157454784,0.0109497,91319.0,91308.0,0.068801]
[1765157455685,0.0109497,91319.0,91308.0,0.085331]
[1765157456091,0.00016432,91320.0,91313.0,0.0109504]
[1765157456280,0.00016432,91320.0,91319.0,0.05785]
[1765157456880,0.05495,91314.0,91313.0,0.0109504]
[1765157457094,0.00016432,91320.0,91319.0,0.05785]